[Event "82nd Italian Championship 2023"]
[Site "Brescia"]
[Date "2023.11.29"]
[Round "2.3"]
[White "Gilevych, Artem"]
[Black "Lodici, Lorenzo"]
[Result "1-0"]
[ECO "B30"]
[WhiteElo "2416"]
[BlackElo "2550"]
[Annotator "TA"]
[PlyCount "91"]
[EventDate "2023.11.28"]
[EventType "tourn"]
[EventCountry "ITA"]
[SourceTitle "playchess.com"]
[Source "ChessBase"]
[SourceQuality "1"]
[TimeControl "40/6000+30:20/3000+30:900+30"]

{[%evp 9,91,42,40,34,35,33,39,25,51,56,82,33,73,66,89,73,74,0,6,0,18,33,41,27,33,23,31,37,31,0,68,73,88,64,105,39,27,20,14,44,62,70,101,101,95,93,100,8,133,141,181,177,178,186,539,63,202,203,585,272,249,31,54,0,268,264,29987,29988,29988,29989,29989,29990,29990,1846,1326,1218,29974,29975,29973,29974,5427,922,29990,29991]} 1. e4 {[%emt 0:00:29]} c5 {[%emt 0:00:43]} 2. Nf3 {[%emt 0:01:17]} Nc6 {[%emt 0:05:06]} 3. Bb5 {[%emt 0:00:06]} a6 {[%emt 0:02:43]} 4. Bxc6 {[%emt 0:00:41]} dxc6 {[%emt 0:00:01]} 5. O-O {[%emt 0:01:42]} Bg4 {[%emt 0:00:23]} 6. h3 {[%emt 0:00:30] B30: Sicilian: 2...Nc6 3 Bb5, lines without ...g6.} Bh5 {[%emt 0:00:04]} 7. d3 {[%emt 0:05:31]} Qc7 {[%emt 0:05:29]} 8. Be3 {[%emt 0:17:17] White is slightly better.} e5 {[%emt 0:02:03]} 9. Nbd2 {[%emt 0:01:15]} f6 {[%emt 0:08:22] [#]} 10. a3 $146 {[%emt 0:06:34]} (10. a4 $16) ({Predecessor:} 10. g4 Bf7 11. Nh4 O-O-O 12. f4 exf4 13. Bxf4 Qd7 14. Bg3 Bd6 15. Bxd6 Qxd6 16. Nf5 {1-0 Romano,L (1938)-Lodici,L (2312) Lisbon Christmas op 2014 (9)}) 10... g5 {[%emt 0:10:17] [#]} 11. b4 $1 {[%emt 0:31:06]} cxb4 {[%emt 0:01:10]} 12. axb4 {[%emt 0:00:04]} Nh6 {[%emt 0:08:37]} 13. Qe2 {[%emt 0:11:10]} (13. c3 $16) 13... Bxb4 $11 {[%emt 0:08:18]} 14. g4 {[%emt 0:14:19]} Nxg4 {[%emt 0:12:27]} 15. hxg4 {[%emt 0:07:30]} Bxg4 {[%emt 0:00:23]} 16. Rfb1 {[%emt 0:00:53]} c5 {[%emt 0:04:03]} 17. Rb3 {[%emt 0:00:55] Strongly threatening c3.} Be6 {[%emt 0:01:41] [#]} 18. c3 $1 {[%emt 0:00:48]} Bxb3 {[%emt 0:00:21]} 19. Nxb3 {[%emt 0:04:14]} (19. cxb4 $5 {[%cal Rd2b3]} Be6 20. bxc5 $11) 19... Bxc3 {[%emt 0:05:46]} (19... c4 $1 $11 20. dxc4 Bxc3) 20. Rc1 $36 {[%emt 0:00:05][%cal Ob3c5][%mdl 2048] Hoping for Nxc5! White is really pushing.} Bb4 {[%emt 0:00:04]} 21. Nxc5 {[%emt 0:00:50] Threatens to win with Ne6.} (21. Bxc5 Bxc5 22. Rxc5 Qb6 $15) 21... Qf7 {[%emt 0:06:44] [#] Against Ne6} (21... Qc8 22. Nxg5 fxg5 23. Qh5+ Kf8 24. Qh6+ (24. Qxg5 $2 Rg8 $19) 24... Kf7 25. Bxg5 $18 (25. Qxg5 $2 Rg8 $19) (25. Qh5+ Kf8 $16)) 22. Nxe5 $1 {[%emt 0:03:11][%mdl 512]} fxe5 {[%emt 0:01:45]} 23. Qb2 {[%emt 0:00:00]} (23. Bxg5 $2 Rg8 24. Qg4 Bd2 25. Nxb7 Rxg5 $19) 23... O-O $1 {[%emt 0:01:37]} 24. Qxb4 {[%emt 0:00:06]} Rac8 {[%emt 0:05:09]} 25. Rb1 {[%emt 0:00:43][%mdl 1024] White has compensation.} (25. Bxg5 Qxf2+ 26. Kh1 Qf3+ 27. Kg1 Qg4+ 28. Kh1 Qh5+ 29. Kg2 Qxg5+ 30. Kh3 Rf3+ 31. Kh2 Qh4+ 32. Kg2 Qf2+ 33. Kh1 Rh3#) 25... Rc7 {[%emt 0:03:17]} 26. Qb6 {[%emt 0:00:34]} (26. Bxg5 Qxf2+ 27. Kh1 Qf3+ 28. Kg1 Qg4+ 29. Kh1 Qh5+ 30. Kg2 Qxg5+ 31. Kh3 Qh5+ 32. Kg3 Rg7#) (26. Nxb7 $2 Rb8 27. Qd6 Rcxb7 $19) 26... Rfc8 {[%emt 0:01:20] [#]} 27. Qd6 $1 {[%emt 0:00:16] White is much more active.} (27. Nxb7 Rb8 28. Qxa6 Rcxb7 29. Rxb7 Rxb7 30. Bxg5 Rb8 $15) 27... Re8 {[%emt 0:05:36]} (27... Qa2 $2 28. Rb6 (28. Rxb7 Rxb7 {[%mdl 64] Remove Defender} 29. Nxb7 Qb1+ 30. Kh2 Qxb7 $16) 28... Rf7 29. Qxe5 $18) 28. Rb6 {[%emt 0:00:47]} (28. Bxg5 $2 Rc6 29. Qd7 Rxc5 $19) (28. Qd5 $16) 28... g4 {[%emt 0:02:08]} (28... Qf3 $11) 29. Ne6 $16 {[%emt 0:01:15] Black is weak on the dark squares} Rc6 {[%emt 0:01:34]} 30. Rxc6 {[%emt 0:00:32]} bxc6 {[%emt 0:00:02]} 31. Nc7 {[%emt 0:00:47]} Re7 {[%emt 0:08:04]} (31... Rf8 32. Qxe5 (32. Qxc6 g3 $11) 32... Qf6) 32. Nxa6 $2 {[%emt 0:00:10]} (32. Bh6 $18 {White threatens Qd8+ and mate.} Rd7 33. Qxc6 (33. Qxe5 Rxd3 34. Bf4 Qg7 $16)) 32... Qe6 {[%emt 0:00:39]} ({Better is} 32... h5 $1 $14) 33. Qd8+ $18 {[%emt 0:00:30]} Kg7 $2 {[%emt 0:00:16]} (33... Re8 {is more resistant.} 34. Qh4 Qf7) 34. Nc5 {[%emt 0:00:35]} (34. Bc5 $142 Kf7 35. Nc7) 34... Qf7 {[%emt 0:00:41]} 35. Qd6 $2 {[%emt 0:00:22]} (35. d4 $18) 35... Qf6 $14 {[%emt 0:00:24]} 36. Qd8 {[%emt 0:00:53]} ({White should play} 36. Qxf6+ $14 Kxf6 37. Kg2) 36... Rf7 $2 {[%emt 0:00:41][%mdl 8192]} (36... Qf7 $1 $11 {and Black is okay.}) 37. Qc8 $18 {[%emt 0:00:25] Ne6+ is the strong threat.} Qf3 $2 {[%emt 0:00:26]} (37... h6 $18 38. Qxg4+ Qg6 39. Qxg6+ Kxg6) 38. Ne6+ {[%emt 0:00:25]} ({Inferior is} 38. Qxc6 Qd1+ 39. Kg2 (39. Kh2 g3+ 40. fxg3 Qe2+ 41. Kh3 Qh5+ 42. Kg2 Qf3+ 43. Kh3 Qh5+ 44. Kg2 Qe2+ 45. Kh3 Qh5+ $11) 39... Qf3+ 40. Kg1 Qd1+ 41. Kh2 g3+ 42. fxg3 (42. Kxg3 Qg1+ 43. Kh4 Qh2+ 44. Kg5 h6+ 45. Kg4 h5+ 46. Kg5 Qg2+ 47. Kxh5 Rf5+ 48. exf5 Qxc6 $15) 42... Qe2+ 43. Kh3 Qh5+ 44. Kg2 Qf3+ 45. Kh3 Qh5+ 46. Kg2 Qf3+ 47. Kh3 Qh5+ $11) 38... Kf6 {[%emt 0:00:21]} 39. Ng5 {[%emt 0:00:15]} Qd1+ {[%emt 0:00:08]} 40. Kg2 {[%emt 0:00:29]} Kg7 {[%emt 0:01:01]} 41. Nxf7 {[%emt 0:07:35]} (41. Qe6 $142 Qf3+ 42. Nxf3 gxf3+ 43. Kg3 h5 44. Qxe5+ Kg8 45. Qe8+ Kg7 46. Bd4+ Rf6 47. Qe7+ {[%mdl 64] Pin, Deflection, Double Attack} Kg8 48. Bxf6 h4+ 49. Kxh4 c5 50. Qg7#) 41... Qf3+ {[%emt 0:00:20]} 42. Kg1 {[%emt 0:00:19]} Qd1+ {[%emt 0:01:28]} 43. Kh2 {[%emt 0:00:22]} g3+ {[%emt 0:00:05]} 44. Kxg3 {[%emt 0:00:26]} Qg1+ {[%emt 0:00:12]} 45. Kf3 {[%emt 0:01:15] Intending Nh6 and mate.} Qd1+ {[%emt 0:00:13]} 46. Kg2 {[%emt 0:00:10] Artfully played by Gilevych.   Weighted Error Value: White=0.44/Black=0.85} 1-0

[Event "82nd Italian Championship 2023"]
[Site "Brescia"]
[Date "2023.11.29"]
[Round "2.4"]
[White "Sonis, Francesco"]
[Black "Dvirnyy, Danyyil"]
[Result "1-0"]
[ECO "E66"]
[WhiteElo "2564"]
[BlackElo "2495"]
[Annotator "TA"]
[PlyCount "135"]
[EventDate "2023.11.28"]
[EventType "tourn"]
[EventCountry "ITA"]
[SourceTitle "playchess.com"]
[Source "ChessBase"]
[SourceQuality "1"]
[TimeControl "40/6000+30:20/3000+30:900+30"]

{[%evp 20,135,21,4,16,-10,28,17,25,17,48,44,45,47,56,45,41,45,52,46,52,50,45,62,38,40,44,49,49,41,51,49,47,47,53,25,25,24,77,77,76,75,78,75,75,75,81,60,60,0,74,74,75,72,85,85,85,85,85,85,93,93,97,97,97,97,97,97,97,97,104,104,104,97,104,97,104,104,104,97,95,95,97,97,104,104,104,104,104,104,104,104,104,104,104,104,104,104,104,75,75,75,82,79,82,68,82,75,82,82,82,82,83,83,83,83,4133,1936]} 1. Nf3 {[%emt 0:00:04]} Nf6 {[%emt 0:00:55]} 2. c4 {[%emt 0:00:24]} g6 {[%emt 0:00:05]} 3. g3 {[%emt 0:00:22]} Bg7 {[%emt 0:00:06]} 4. Bg2 {[%emt 0:00:22]} O-O {[%emt 0:00:06]} 5. O-O {[%emt 0:00:09]} d6 {[%emt 0:01:30]} 6. Nc3 {[%emt 0:00:09]} c5 {[%emt 0:01:07]} 7. d4 {[%emt 0:10:34]} Nc6 {[%emt 0:00:30]} 8. d5 {[%emt 0:00:06]} Na5 {[%emt 0:00:34]} 9. Nd2 {[%emt 0:00:04]} e6 {[%emt 0:00:14]} 10. Rb1 {[%emt 0:04:59]} exd5 {[%emt 0:00:15]} 11. cxd5 {[%emt 0:00:08]} Bd7 {[%emt 0:00:10] [#] E66: King's Indian: Fianchetto: 6...c5 7 0-0 Nc6 8 d5.} 12. a4 $5 $146 {[%emt 0:10:26][%mdl 8] New and interesting.} ({Predecessor:} 12. Nde4 Nxe4 13. Nxe4 Bf5 14. b4 Bxe4 15. Bxe4 cxb4 16. Rxb4 Rc8 17. Bd3 b6 18. h4 Nb7 19. Bg5 {1-0 Wadsworth,M (2446)-Hebden,M (2443) Nottinghamshire Centenary 2023 (4)}) 12... c4 {[%emt 0:00:22]} 13. b4 {[%emt 0:07:42]} cxb3 {[%emt 0:00:08] The position is equal.} 14. Nxb3 {[%emt 0:02:51]} Nc4 {[%emt 0:15:46]} 15. Nd2 $1 {[%emt 0:07:19]} Rc8 {[%emt 0:04:19][%cal Oc4e3,Ba8c8,Bc8c4,Bc4e4][%mdl 32]} 16. Nxc4 {[%emt 0:14:31]} ({Reject} 16. Rxb7 Na5 17. Rxd7 Qxd7 $15) 16... Rxc4 {[%emt 0:00:07]} 17. Qb3 {[%emt 0:00:03]} Qc7 {[%emt 0:07:02]} 18. Nb5 {[%emt 0:00:12]} Bxb5 {[%emt 0:00:44]} 19. Qxb5 {[%emt 0:00:05]} b6 {[%emt 0:23:42]} 20. Ba3 {[%emt 0:00:04][%cal Oa3d6] Prevents Rc5. Bxd6! would be deadly. This pair of bishops is nice.} Ne4 {[%emt 0:01:55]} 21. Bxe4 {[%emt 0:16:38]} Rxe4 {[%emt 0:00:08]} 22. e3 {[%emt 0:06:18]} Rd8 {[%emt 0:07:18]} 23. Rbc1 {[%emt 0:06:37]} Qe7 {[%emt 0:00:11]} 24. a5 {[%emt 0:00:55]} bxa5 {[%emt 0:05:23]} 25. Qxa5 {[%emt 0:00:19]} h5 {[%emt 0:05:05]} 26. Rc7 {[%emt 0:01:22]} Rd7 {[%emt 0:00:49]} 27. Rfc1 {[%emt 0:01:41][%cal Bf1c1,Bc1c7,Bc7b7][%mdl 32]} Rxc7 {[%emt 0:04:39]} 28. Rxc7 {[%emt 0:05:26]} Qe5 {[%emt 0:00:30]} (28... Qf6 $1 $11 {remains equal.}) 29. Qxa7 $16 {[%emt 0:01:55] White is more active.} (29. Rxa7 $2 {loses.} Rxe3 30. Bb4 (30. fxe3 $2 Qxe3+ 31. Kf1 Qf3+ 32. Ke1 Bc3+ $19) 30... Rb3 $19) 29... Qxd5 {[%emt 0:03:07]} 30. Qb8+ $1 {[%emt 0:01:28]} Kh7 {[%emt 0:02:27] [#] Hoping for ...Qd1+.} 31. Qb7 $1 {[%emt 0:00:50]} Qxb7 {[%emt 0:09:41]} 32. Rxb7 {[%emt 0:00:06][%mdl 4096] Endgame KRB-KRB} Kg8 {[%emt 0:03:23]} 33. Rb8+ {[%emt 0:00:05]} Kh7 {[%emt 0:00:06]} 34. Rb7 {[%emt 0:00:02]} Kg8 {[%emt 0:00:06]} 35. Bxd6 {[%emt 0:00:04]} g5 {[%emt 0:06:43]} 36. h3 {[%emt 0:01:09]} Bf6 {[%emt 0:00:19]} 37. Kg2 {[%emt 0:00:55]} Kg7 {[%emt 0:00:42]} 38. Kf3 {[%emt 0:01:11]} Rc4 {[%emt 0:02:09]} 39. g4 {[%emt 0:00:06]} hxg4+ {[%emt 0:00:13]} 40. hxg4 {[%emt 0:00:05]} Rc6 {[%emt 0:00:34]} 41. Bb8 {[%emt 0:52:03]} Kg6 {[%emt 0:54:23]} 42. Ba7 {[%emt 0:00:16]} Re6 {[%emt 0:00:00]} 43. Bc5 {[%emt 0:00:00]} Be5 {[%emt 0:00:00]} 44. Rb5 {[%emt 0:00:00]} Bc7 {[%emt 0:00:00]} 45. Bd4 {[%emt 0:00:00] Prevents Re5.} Bd8 {[%emt 0:00:00]} 46. Kg2 {[%emt 0:00:00]} Bc7 {[%emt 0:00:00]} 47. Rd5 {[%emt 0:00:00]} Bd6 {[%emt 0:00:00]} 48. Rf5 {[%emt 0:00:00]} Be7 {[%emt 0:00:00]} 49. Rb5 {[%emt 0:00:00]} Bf6 {[%emt 0:00:00]} 50. Bb6 {[%emt 0:00:00]} Rc6 {[%emt 0:00:00]} 51. Bc5 {[%emt 0:00:00]} Bd8 {[%emt 0:00:00]} 52. Kf3 {[%emt 0:00:00]} Rf6+ {[%emt 0:00:00]} 53. Ke2 {[%emt 0:00:00]} Rc6 {[%emt 0:00:00]} 54. Kd3 {[%emt 0:00:00]} Bc7 {[%emt 0:00:00]} 55. Bd4 {[%emt 0:00:00]} Re6 {[%emt 0:00:00]} 56. Rf5 {[%emt 0:00:00]} Bb6 {[%emt 0:00:00]} 57. Be5 {[%emt 0:00:00]} Rc6 {[%emt 0:00:40]} 58. Bb2 {[%emt 0:00:00]} Bd8 {[%emt 0:00:23]} 59. f4 {[%emt 0:00:00]} gxf4 {[%emt 0:02:45]} 60. exf4 {[%emt 0:00:00]} Ra6 {[%emt 0:02:12]} 61. Bd4 {[%emt 0:00:00]} Ra5 {[%emt 0:16:21]} 62. Bc5 {[%emt 0:00:00]} Ra4 {[%emt 0:01:06]} 63. Ke3 {[%emt 0:00:00]} Bf6 {[%emt 0:00:00]} 64. Rd5 {[%emt 0:00:00]} Ra5 {[%emt 0:00:00]} 65. Ke4 {[%emt 0:00:00]} Ra4+ {[%emt 0:00:00]} 66. Kf3 {[%emt 0:00:00]} Ra5 {[%emt 0:00:00]} 67. Rh5 {[%emt 0:00:00] Prevents Be7} Ra4 $2 {[%emt 0:00:39][%mdl 8192] [#]} (67... Rb5 $16 68. Ke4 Ra5) 68. Bf8 $1 {[%emt 0:00:00] Weighted Error Value: White=0.04 (flawless) /Black=0.04 (flawless)} 1-0

[Event "82nd Italian Championship 2023"]
[Site "Brescia"]
[Date "2023.11.29"]
[Round "2.5"]
[White "Moroni, Luca Jr"]
[Black "David, Alberto"]
[Result "1/2-1/2"]
[ECO "A23"]
[WhiteElo "2575"]
[BlackElo "2532"]
[Annotator "TA"]
[PlyCount "96"]
[EventDate "2023.11.28"]
[EventType "tourn"]
[EventCountry "ITA"]
[SourceTitle "playchess.com"]
[Source "ChessBase"]
[SourceQuality "1"]
[TimeControl "40/6000+30:20/3000+30:900+30"]

{[%evp 9,96,9,14,3,10,13,8,11,2,5,8,20,40,31,41,33,27,27,31,40,48,41,51,52,48,39,60,56,66,21,64,56,75,59,56,58,84,77,75,71,68,62,63,58,60,68,68,60,67,51,51,53,56,0,0,0,0,0,0,0,0,0,0,0,0,0,0,0,0,0,0,0,0,0,0,0,0,0,0,0,0,0,0,0,0,0,0,0,12844]} 1. c4 {[%emt 0:00:40]} e5 {[%emt 0:02:49]} 2. g3 {[%emt 0:00:06]} Nf6 {[%emt 0:04:30]} 3. Bg2 {[%emt 0:00:07]} Bc5 {[%emt 0:00:40]} 4. Nc3 {[%emt 0:00:51]} O-O {[%emt 0:00:54]} 5. e3 {[%emt 0:05:49]} c6 {[%emt 0:05:35]} 6. Nge2 {[%emt 0:03:09] A23: English Opening: 1...e5 2 Nc3 Nf6 3 g3 c6.} d5 {[%emt 0:03:48]} 7. cxd5 {[%emt 0:11:27]} Nxd5 {[%emt 0:03:12] seems to push 7...cxd5 aside.} 8. d4 {[%emt 0:08:03]} exd4 {[%emt 0:08:15]} 9. Nxd5 {[%emt 0:10:26]} cxd5 {[%emt 0:00:25]} 10. Nxd4 {[%emt 0:01:23]} Bxd4 {[%emt 0:08:32]} 11. Qxd4 {[%emt 0:04:45]} ({Much worse is} 11. exd4 Qa5+ 12. Kf1 Bf5 $11) 11... Be6 {[%emt 0:02:19]} 12. O-O {[%emt 0:02:51][%cal Bh1f1,Bf1c1,Bc1c5][%mdl 32] [#]} Nc6 $146 {[%emt 0:00:17]} ({Predecessor:} 12... Qc7 13. b3 Nc6 14. Qc5 Qe7 15. Qxe7 Nxe7 16. Ba3 Rfe8 {0-1 Biermann,F (1470)-Buganza,N ICCF FM/3299 email 2019}) 13. Qf4 {[%emt 0:00:44]} Qb6 {[%emt 0:02:09]} 14. b3 {[%emt 0:09:47]} d4 {[%emt 0:10:48]} 15. exd4 {[%emt 0:11:21]} (15. Re1 {seems wilder.} d3 16. Bb2 Rad8 17. Bc3) 15... Rad8 {[%emt 0:05:02]} 16. Be3 {[%emt 0:01:25][%cal Od4d5] [#] aiming for d5! A strong pair of Bishops.} Bd5 {[%emt 0:00:22]} 17. Rfc1 {[%emt 0:03:54]} Bxg2 {[%emt 0:08:01]} 18. Kxg2 {[%emt 0:04:54][%cal Od4d5] Strongly threatening d5!} Qa6 {[%emt 0:02:40]} 19. Qg4 {[%emt 0:03:36] Hoping for Bh6.} Nb4 {[%emt 0:05:19][%cal Of7f5]} 20. Rc5 {[%emt 0:04:20]} Nd5 {[%emt 0:02:02]} 21. Qf3 {[%emt 0:06:56]} Qd6 {[%emt 0:04:46]} 22. Rac1 {[%emt 0:01:09]} Rd7 {[%emt 0:18:05]} 23. Rc8 {[%emt 0:02:56]} Rdd8 {[%emt 0:00:26]} 24. Rxd8 {[%emt 0:00:21]} Rxd8 {[%emt 0:00:06]} 25. Bg5 {[%emt 0:00:16]} f6 {[%emt 0:00:14]} 26. Bd2 {[%emt 0:00:03]} Qd7 {[%emt 0:00:21]} 27. h4 {[%emt 0:02:04][%cal Bh2h4,Bh4h5][%mdl 32]} Ne7 {[%emt 0:09:09][%cal Bd5e7,Be7c6,Bc6b4][%mdl 32]} 28. h5 {[%emt 0:03:15] White is more active.} Nc6 {[%emt 0:01:48]} 29. Be3 {[%emt 0:00:59]} (29. Bc3 $5 {[%cal Rh5h6]}) 29... h6 {[%emt 0:00:51]} 30. Rc5 {[%emt 0:01:53]} Nb4 {[%emt 0:00:26] [#]} 31. Bxh6 {[%emt 0:04:10]} gxh6 $11 {[%emt 0:00:07] The position is equal.} 32. Qxf6 {[%emt 0:00:05]} Nd5 {[%emt 0:01:44]} 33. Qxh6 {[%emt 0:01:12]} Qf5 {[%emt 0:00:05]} 34. Kg1 {[%emt 0:01:42]} Rf8 {[%emt 0:00:39]} 35. Qg6+ {[%emt 0:00:23]} Qxg6 {[%emt 0:00:04]} 36. hxg6 {[%emt 0:00:01][%mdl 4096] Endgame KRN-KR} Rd8 {[%emt 0:00:12]} 37. f4 {[%emt 0:00:13]} Kg7 {[%emt 0:00:10]} 38. f5 {[%emt 0:00:29]} Kf6 {[%emt 0:00:38]} 39. g4 {[%emt 0:00:31]} Kg5 {[%emt 0:01:14]} 40. g7 {[%emt 0:00:57][%cal Oc5d5] Threatens to win with Rxd5!} Nf6 {[%emt 0:00:45][%cal Od8d7] White must now prevent ...Rd7!} 41. Rc7 {[%emt 0:08:19]} Nxg4 {[%emt 0:16:57]} 42. Rxb7 {[%emt 0:05:42]} a5 {[%emt 0:00:07]} 43. d5 {[%emt 0:14:31]} Rg8 {[%emt 0:11:42]} 44. d6 {[%emt 0:07:09]} Ne5 {[%emt 0:00:24]} 45. Kf2 {[%emt 0:01:30]} Kxf5 {[%emt 0:00:38]} 46. Re7 {[%emt 0:04:33]} Kf6 {[%emt 0:03:00]} 47. Ke3 {[%emt 0:01:56]} Nf7 {[%emt 0:01:20]} 48. Ra7 {[%emt 0:00:16]} Ke5 $2 {[%emt 0:20:53][%mdl 40960] Weighted Error Value: White=0.05 (flawless) /Black=0.04 (flawless) . An unexpected result.} 1/2-1/2

[Event "82nd Italian Championship 2023"]
[Site "Brescia"]
[Date "2023.11.29"]
[Round "2.6"]
[White "Carnicelli, Valerio"]
[Black "Iermito, Sebastian"]
[Result "1/2-1/2"]
[ECO "C54"]
[WhiteElo "2423"]
[BlackElo "2524"]
[Annotator "TA"]
[PlyCount "97"]
[EventDate "2023.11.28"]
[EventType "tourn"]
[EventCountry "ITA"]
[SourceTitle "playchess.com"]
[Source "ChessBase"]
[SourceQuality "1"]
[TimeControl "40/6000+30:20/3000+30:900+30"]

{[%evp 10,97,19,13,35,6,17,7,15,18,24,14,27,13,20,0,5,0,13,3,34,16,35,-13,18,0,43,-79,0,-25,-30,-33,-28,-29,-20,-14,-25,-70,-24,-61,0,0,0,0,0,-95,-101,-264,-116,-128,-127,-130,-144,-128,-71,-257,-257,-257,-8,-17,-17,-12,96,84,236,235,236,229,213,177,149,79,125,132,131,87,94,81,81,81,81,43,76,76,86,0,77,0,98,0]} 1. e4 {[%emt 0:00:03]} e5 {[%emt 0:00:04]} 2. Nf3 {[%emt 0:00:03]} Nc6 {[%emt 0:00:03]} 3. Bc4 {[%emt 0:00:03]} Bc5 {[%emt 0:00:04]} 4. c3 {[%emt 0:00:03]} Nf6 {[%emt 0:00:04]} 5. d3 {[%emt 0:00:02]} d6 {[%emt 0:00:04]} 6. O-O {[%emt 0:00:05]} a5 {[%emt 0:00:21] C54: Giuoco Piano: 4 c3 Nf6, main lines with 5 d4 and 5 d3.} 7. Re1 {[%emt 0:00:11]} (7. Bg5 $5 {[%cal Rd3d4]}) 7... O-O {[%emt 0:00:13]} 8. h3 {[%emt 0:00:04]} Be6 {[%emt 0:00:16] The position is equal.} 9. Bb5 {[%emt 0:00:17]} Ba7 {[%emt 0:00:09]} 10. Nbd2 {[%emt 0:01:10][%cal Bb1d2,Bd2f1,Bf1g3][%mdl 32]} Ne7 {[%emt 0:00:25]} 11. d4 {[%emt 0:01:04]} Ng6 {[%emt 0:01:54]} 12. Bd3 {[%emt 0:04:06]} Nh5 {[%emt 0:08:10]} 13. Nf1 {[%emt 0:03:27]} Nhf4 {[%emt 0:01:09]} 14. Bc2 {[%emt 0:01:58]} c6 {[%emt 0:34:08]} 15. Ng3 {[%emt 0:01:55]} f6 {[%emt 0:01:42] [#]} 16. Bb3 $146 {[%emt 0:12:39]} (16. Nf5 $14) ({Predecessor:} 16. Be3 Qd7 17. Ne2 Nxg2 18. Kxg2 Bxh3+ 19. Kh1 f5 20. exf5 e4 21. Bxe4 Bxf5 22. Bxf5 Qxf5 {½-½ Matlakov,M (2674)-Petrosyan,M (2604) FIDE Grand Swiss 2023 (2)}) 16... Kh8 {[%emt 0:21:56]} 17. Be3 {[%emt 0:16:15]} (17. Bxe6 {simplifies} Nxe6 18. Be3 Qc7 19. h4) 17... Qc7 {[%emt 0:03:13]} 18. a4 {[%emt 0:08:53]} (18. Bxe6 $14 {keeps the upper hand.} Nxe6 19. Nf5) 18... Rad8 {[%emt 0:05:28]} (18... d5 $1 $17) 19. d5 {[%emt 0:08:00]} cxd5 {[%emt 0:01:13]} (19... Bxe3 20. fxe3 cxd5 21. exd5 (21. exf4 Qb6+ 22. Kh1 dxe4 $16) 21... Nxh3+ 22. gxh3 Bxh3 23. Bc2 $16) 20. Bxa7 {[%emt 0:11:31]} b6 {[%emt 0:00:14]} 21. exd5 {[%emt 0:00:57]} Bc8 {[%emt 0:01:20]} (21... Bd7 {simplifies} 22. Bc2 Qxa7 23. Bxg6 Nxg6 24. b3 Nf4) 22. Bxb6 {[%emt 0:01:05]} Qxb6 {[%emt 0:00:01]} 23. Qc2 {[%emt 0:10:41]} Ba6 {[%emt 0:02:20]} (23... Bb7 $15) 24. c4 {[%emt 0:02:38]} (24. Ra3 {is more complex.} f5 25. Qd2 Rde8 26. Bc2) 24... Rb8 {[%emt 0:00:39]} (24... f5 $15) 25. Re3 $11 {[%emt 0:01:20]} Rfc8 {[%emt 0:01:01]} 26. Rd1 {[%emt 0:02:16]} Ne7 {[%emt 0:06:49][%cal Oe7d5] And now ...Nexd5! would win.} 27. Rc3 {[%emt 0:11:32]} (27. Qe4 $11) 27... Nexd5 $1 $17 {[%emt 0:08:21]} 28. c5 $2 {[%emt 0:06:18]} (28. cxd5 $17 Rxc3 {[%mdl 64] Remove Defender} 29. Qxc3 Qxb3 30. Qxb3 Rxb3 31. Nf5) 28... Nxc3 {[%emt 0:00:19]} (28... dxc5 29. Bxd5 Rd8 30. Be4 $18) (28... Qc6 $19 29. Bxd5 Nxd5) 29. cxb6 {[%emt 0:00:04]} Nce2+ {[%emt 0:00:05][%mdl 64] Discovered Attack} ({Don't do} 29... Nxd1 30. Qxd1 Rxb6 31. Nd2 $16) 30. Kh2 {[%emt 0:00:11]} Rxc2 {[%emt 0:00:06]} (30... Rxb6 $2 31. Qf5 Rd8 32. Nxe5 fxe5 33. Ne4 $18) 31. Bxc2 {[%emt 0:00:03] [#]} Rxb6 {[%emt 0:00:23]} (31... d5 $142 $1 32. b4 (32. Nxe2 $2 Bxe2 33. Rc1 Rxb6 $19) 32... axb4) 32. b4 $2 {[%emt 0:02:37]} axb4 $19 {[%emt 0:01:36]} ({Not} 32... Rxb4 33. Rxd6 Bc4 34. Nxe2 Nxe2 35. Rd8+ Bg8 36. Rf8 $11) 33. a5 {[%emt 0:00:22][%cal Ba4a5,Ba5a6][%mdl 32] [#]} b3 $1 {[%emt 0:04:26]} 34. Bxb3 $11 {[%emt 0:03:04][%mdl 64] Deflection} Rxb3 {[%emt 0:01:05]} 35. Rxd6 {[%emt 0:00:02][%cal Rd6d8]} Bc4 {[%emt 0:00:15]} (35... h5 $11 {keeps the balance.} 36. Rxa6 Nxg3 37. fxg3 (37. Kxg3 Ra3 $15) 37... Nd5) 36. Nd2 $16 {[%emt 0:01:42][%csl LRb3,LRc4]} Rb7 $2 {[%emt 0:07:41]} (36... Rc3 $16 {was worth a try.} 37. Nxc4 h5) 37. Nxc4 $18 {[%emt 0:00:06][%cal Rd6d8]} h5 {[%emt 0:00:07]} 38. a6 {[%emt 0:01:28]} Ra7 {[%emt 0:00:10]} 39. Ne4 {[%emt 0:00:51]} Nd4 {[%emt 0:01:18]} 40. Rb6 {[%emt 0:00:52]} ({White should try} 40. Nc5) 40... Nfe6 {[%emt 0:01:06]} (40... Nd5 $142 41. Rb8+ Kh7) 41. Ncd6 {[%emt 0:18:01]} Ra8 {[%emt 0:08:59] Inhibits Nc8.} 42. Nb7 {[%emt 0:05:28]} h4 {[%emt 0:12:43]} 43. Nec5 {[%emt 0:05:24]} Nc7 {[%emt 0:04:23]} 44. Na5 {[%emt 0:01:56]} Kh7 {[%emt 0:03:01]} 45. Nc4 {[%emt 0:03:13]} Ncb5 {[%emt 0:08:11] aiming for ...Rc8.} 46. Nd6 {[%emt 0:03:25] Dodges Rc8} Nc7 {[%emt 0:01:51]} 47. Nc4 {[%emt 0:08:54]} Ncb5 $1 {[%emt 0:00:20] ...Rc8 is the strong threat.} 48. Nd6 {[%emt 0:00:11] Inhibits Rc8.} Nc7 {[%emt 0:00:03]} 49. Nc4 {[%emt 0:00:03] Weighted Error Value: White=0.32/Black=0.34} (49. Kh1 $16) 1/2-1/2